Cogmind - Beta 9.4 @@@ ROGUE MODE // 2020.01.30 @ 23:40:28 Player: Destravous Result: Destroyed by G-34 Mercenary with Small Laser Performance ------------- Evolutions (1) 500 Regions Visited (2) 400 Robots Destroyed (19) 95 Value Destroyed (457) 457 Prototype IDs (3) 60 Alien Tech Used (0) 0 Bonus (0) 0 TOTAL SCORE: 1512 Bonus ------- None Cogmind --------- Core Integrity 0/400 Matter 8/300 Energy 94/100 System Corruption 2% Temperature Cool (6) Movement Core (100) Ox1 Location -9/Materials Parts ------- > --- POWER (1) -------- (None) > --- PROPULSION (2) --- (None) > --- UTILITY (4) ------ Heat Sink Small Storage Unit Weight Redist. System Improved Sensor Array > --- WEAPON (2) ------- Improved Light Cannon > --- INVENTORY (6) ---- Light Ion Engine Light Ion Engine Heavy Ion Engine Field Recycling Unit (0) Assault Rifle Peak State ------------ > --- POWER ------------ Heavy Ion Engine > --- PROPULSION ------- Improved Hover Unit Improved Hover Unit > --- UTILITY ---------- Small Storage Unit Improved Sensor Array Improved Signal Interpreter > --- WEAPON ----------- Light Assault Rifle Improved Light Cannon > --- INVENTORY -------- Light Ion Engine Light Ion Engine Field Recycling Unit Beam Cannon Assault Rifle Mining Laser [Rating: 15] Favorites ----------- Power Heavy Ion Engine Engine Heavy Ion Engine Propulsion Improved Hover Unit Leg Aluminum Leg Hover Unit Improved Hover Unit Utility Small Storage Unit Device Improved Sensor Array Storage Small Storage Unit Processor Improved Signal Interpreter Weapon Beam Cannon Energy Gun Particle Gun Energy Cannon Beam Cannon Ballistic Gun Light Assault Rifle Ballistic Cannon Improved Light Cannon Launcher Grenade Launcher Special Weapon Mining Laser Build | -11 -10 -9 ------- Run | Scr Mat Mat Slots Evolved 2 | . . 2 Power . | . . . Propulsion . | . . . Utility 2 | . . 2 Weapon . | . . . Parts Attached 24 | . 10 14 Power 2 | . . 2 Engine 2 | . . 2 Core . | . . . Reactor . | . . . Propulsion 6 | . 4 2 Treads . | . . . Leg . | . . . Wheel . | . . . Hover 6 | . 4 2 Flight . | . . . Utility 5 | . 2 3 Device 4 | . 1 3 Storage . | . . . Processor 1 | . 1 . Hackware . | . . . Protection . | . . . Artifact . | . . . Weapon 11 | . 4 7 Energy Gun 1 | . 1 . Energy Cannon 3 | . 1 2 Ballistic Gun 1 | . 1 . Ballistic Cannon 2 | . . 2 Launcher 1 | . 1 . Special Weapon 3 | . . 3 Impact Weapon . | . . . Slashing Weapon . | . . . Piercing Weapon . | . . . Special Melee Weapon . | . . . Unidentified Prototypes 1 | . . 1 Parts Lost 9 | . 3 6 Power . | . . . Propulsion 4 | . 2 2 Utility 1 | . . 1 Weapon 4 | . 1 3 Highest Loss Streak 3 | . 3 2 Average Slot Usage (%) 86 | . 97 76 Engine 12 | . 14 11 Hover 18 | . 25 11 Device 14 | . 10 18 Storage 12 | . 14 11 Processor 2 | . 2 3 Energy Gun 1 | . 3 . Energy Cannon 6 | . 4 7 Ballistic Gun 8 | . 15 1 Ballistic Cannon 2 | . . 4 Launcher 2 | . 4 . Special Weapon 3 | . . 6 Naked Turns . | . . . Heaviest Build 21 | 10 21 20 Greatest Support 20 | 20 20 16 Greatest Overweight (x) 6 | . 5 6 Average Overweight (x) . | . . 1 Largest Inventory Capacity 6 | . 6 6 Average Capacity 6 | . 6 6 Most Carried 6 | . 6 6 Average Carried 5 | . 5 5 Final Capacity 6 | 6 6 6 Final Carried 6 | 6 6 5 Class Distribution -------------------- 100% | Mutant Dominant Class ---------------- Mutant | -10/Materials Mutant | -9/Materials Resources | -11 -10 -9 ----------- Run | Scr Mat Mat Matter Collected 328 | 189 93 46 Remotely . | . . . Salvage Created 449 | . 283 166 Parts 46 | . 34 12 Haulers Intercepted 1 | . 1 . Recyclers Shooed 2 | . 1 1 Parts Field Recycled . | . . . Retrieved Matter . | . . . Parts Self-Destructed . | . . . Prevented . | . . . Kills | -11 -10 -9 ------- Run | Scr Mat Mat Combat Hostiles Destroyed 12 | . 8 4 Guns 1 | . 1 . Cannons 5 | . 1 4 AOE 6 | . 6 . Classes Destroyed 7 | . 6 1 Worker 2 | . 2 . Builder 1 | . 1 . Hauler 1 | . 1 . Watcher 3 | . 3 . Swarmer 3 | . 3 . Grunt 8 | . 5 3 Sentry 1 | . . 1 Best Kill Streak 7 | . 7 2 Combat Bots Only 3 | . 3 2 Max Kills in Single Turn 2 | . 2 1 Gunslinging . | . . . Exploded 2 | . 2 . Melee . | . . . Uniques/NPCs Destroyed . | . . . Combat | -11 -10 -9 -------- Run | Scr Mat Mat Damage Taken 1342 | . 434 908 Core 509 | . 105 404 Absorbed by Shields . | . . . Core Remaining (%) 79 | 100 58 . Volleys Fired 79 | . 36 43 Largest 2 | . 2 2 Hottest 139 | . 125 139 Shots Fired 122 | . 65 57 Gun 43 | . 36 7 Cannon 50 | . 16 34 Launcher 13 | . 13 . Special 16 | . . 16 Kinetic 50 | . 28 22 Thermal 59 | . 24 35 Explosive 13 | . 13 . Electromagnetic . | . . . Robot Hit Streak 7 | . 3 7 Robot Miss Streak 7 | . 7 4 Penetration Max . | . . . Secondary Targets . | . . . Shots Hit Robots 50 | . 27 23 Core Hits 31 | . 25 6 Critical Hits . | . . . Critical Kills . | . . . Critical Parts Destroyed . | . . . Melee Attacks . | . . . Impact . | . . . Slashing . | . . . Piercing . | . . . Sneak Attacks . | . . . Combat Hostiles . | . . . Follow-up Attacks . | . . . Damage Inflicted 1187 | . 916 271 Guns 224 | . 183 41 Cannons 334 | . 104 230 Explosions 629 | . 629 . Melee . | . . . Ramming . | . . . Kinetic 286 | . 137 149 Thermal 272 | . 150 122 Explosive 629 | . 629 . Electromagnetic . | . . . Impact . | . . . Slashing . | . . . Piercing . | . . . Highest Corruption 2 | . . 2 Average Corruption 2 | . . 2 Corruption Purged . | . . . Effects 2 | . . 2 Message Errors 1 | . . 1 Data Loss (minor) 1 | . . 1 Overload Shots . | . . . Overflow Damage 10 | . 10 . Projectiles . | . . . Explosions 10 | . 10 . Melee . | . . . Knockbacks . | . . . Impact . | . . . Kinetic . | . . . Secondary . | . . . Self-Inflicted Damage 34 | . 34 . Shots 1 | . 1 . Rammed . | . . . Targets Rammed . | . . . Kicked . | . . . Crushed . | . . . Highest Temperature 495 | . 495 121 Average Temperature 153 | . 253 33 Received Heat Transfer 402 | . 213 189 Effects 12 | . 12 . Shutdowns 5 | . 5 . Energy Bleed 2 | . 2 . Interference 3 | . 3 . Damage (minor) 2 | . 2 . Siege Activations . | . . . Robots Corrupted . | . . . Combat Hostiles . | . . . Parts Fried . | . . . Impact Corruptions . | . . . Robots Melted . | . . . Combat Hostiles . | . . . Parts Melted . | . . . Heat Transferred 592 | . 333 259 Parts Sabotaged . | . . . Parts Stolen . | . . . Parts Stripped . | . . . Power Chain Reactions . | . . . Missiles Intercepted . | . . . Alert | -11 -10 -9 ------- Run | Scr Mat Mat Peak Influence 310 | . 310 165 Average Influence 85 | . 81 89 Maximum Alert Level 1 | . 1 . Low Security (%) 88 | . 76 100 Level 1 11 | . 23 . Level 2 . | . . . Level 3 . | . . . Level 4 . | . . . Level 5 . | . . . High Security . | . . . Max Security . | . . . Squads Dispatched 3 | . 1 2 Investigation 2 | . 1 1 Extermination . | . . . Reinforcement 1 | . . 1 Assault . | . . . Garrison . | . . . Intercept . | . . . Construction Impeded . | . . . Haulers Reinforced . | . . . Stealth | -11 -10 -9 --------- Run | Scr Mat Mat Distress Signals 4 | . 2 2 Communications Jammed . | . . . Distress Signals . | . . . Times Spotted 37 | . 13 24 Peak Tracking Total 12 | . 3 12 Tactical Retreats 5 | . 1 4 Traps | -11 -10 -9 ------- Run | Scr Mat Mat Traps Triggered . | . . . Indirectly . | . . . Trap Hack Attempts . | . . . Triggered . | . . . Disarmed . | . . . Reprogrammed . | . . . Reused . | . . . Traps Extracted . | . . . Installed . | . . . Triggered . | . . . Machines | -11 -10 -9 ---------- Run | Scr Mat Mat Machines Disabled 5 | . 5 . Max in Single Turn 2 | . 2 . Machines Sabotaged . | . . . Garrisons Compromised . | . . . Overloaded Fab Kills . | . . . Fab Network Shutdowns . | . . . Hacking | -11 -10 -9 --------- Run | Scr Mat Mat Machines Accessed 7 | . 4 3 Terminals 4 | . 3 1 Fabricators . | . . . Repair Stations 1 | . . 1 Recycling Units 1 | . 1 . Scanalyzers 1 | . . 1 Garrison Access . | . . . Total Hacks 21 | . 11 10 Successful 13 | . 6 7 Failed 8 | . 5 3 Catastrophic 1 | . 1 . Database Lockouts . | . . . Manual . | . . . Terminals 12 | . 8 4 Fabricators . | . . . Repair Stations 3 | . . 3 Recycling Units 3 | . 3 . Scanalyzers 3 | . . 3 Garrison Access . | . . . Terminal Hacks 8 | . 5 3 Prototype ID Bank 1 | . 1 . Emergency Access Points 2 | . 1 1 Alert Level 1 | . . 1 Locate Traps 1 | . 1 . Hauler Manifests 1 | . . 1 Registered Prototypes 1 | . 1 . Zone Layout 1 | . 1 . Fabricator Hacks . | . . . Repair Station Hacks 2 | . . 2 Scan Component 1 | . . 1 Repair 1 | . . 1 Recycling Unit Hacks 1 | . 1 . Retrieve Components 1 | . 1 . Scanalyzer 2 | . . 2 Insert Component 1 | . . 1 Analyze 1 | . . 1 Garrison Access Hacks . | . . . Unauthorized Hacks . | . . . Terminals . | . . . Fabricators . | . . . Repair Stations . | . . . Recycling Units . | . . . Scanalyzers . | . . . Garrison Access . | . . . Data Cores Recovered . | . . . Used . | . . . Hacking Detections 4 | . 3 1 Full Trace Events 3 | . 2 1 Feedback Events . | . . . Feedback Blocked . | . . . Robot Schematics Acquired . | . . . Robots Built . | . . . Matter . | . . . Time . | . . . Total Robot Build Rating . | . . . Part Schematics Acquired 1 | . . 1 Parts Built . | . . . Matter . | . . . Time . | . . . Total Part Build Rating . | . . . Parts Repaired 1 | . . 1 Time 32 | . . 32 Parts Recycled . | . . . Recycled Matter . | . . . Retrieved Matter . | . . . Retrieved Components 7 | . 7 . Parts Scanalyzed 1 | . . 1 Part Schematics Acquired 1 | . . 1 Parts Damaged . | . . . Bothacking | -11 -10 -9 ------------ Run | Scr Mat Mat Used RIF Installer . | . . . Robots Hacked . | . . . Non-combat . | . . . Combat . | . . . Robot Hacks Applied . | . . . Relay Couplers Released . | . . . Robots Rewired . | . . . Allies Hacked . | . . . Hacks Repelled . | . . . Allies | -11 -10 -9 -------- Run | Scr Mat Mat Total Allies . | . . . Largest Group . | . . . Highest-Rated Group . | . . . Highest-Rated Ally . | . . . Total Orders . | . . . Ally Attacks . | . . . Total Damage . | . . . Kills . | . . . Allies Corrupted . | . . . Allies Melted . | . . . Intel | -11 -10 -9 ------- Run | Scr Mat Mat Robot Analysis Total . | . . . Derelict Logs Recovered . | . . . Drone Launches . | . . . Drone Recoveries . | . . . Exploration | -11 -10 -9 ------------- Run | Scr Mat Mat Turns Passed 862 | . 410 452 Spaces Moved 522 | 1 287 234 Core 5 | . 1 4 Treads . | . . . Legs 21 | 1 20 . Wheels . | . . . Hover 496 | . 266 230 Flight . | . . . Fastest Speed 56 | 120 56 56 Average Speed 108 | 120 96 122 Slowest Speed 350 | 120 300 350 Overloaded Moves . | . . . Propulsion Burnouts . | . . . Robots Hopped . | . . . Cave-ins Triggered 1 | . . 1 Exploration Rate (%) 30 | 2 58 30 Regions Visited 2 Branch Regions . Pre-discovered Areas . | . . . Known Exits Taken 1 | . 1 . Unknown Exits Taken 1 | 1 . . Scrap Searched . | . . . Spaces Dug 18 | . . 18 Terrain Destroyed 93 | . 75 18 Melee . | . . . Projectile 18 | . . 18 AOE 75 | . 75 . Actions | -11 -10 -9 --------- Run | Scr Mat Mat Total 670 | . 361 309 Wait 20 | . 9 11 Move 520 | . 286 234 Hop . | . . . Pick Up 11 | . 10 1 Fast Attach 8 | . 3 5 Attach 9 | . 4 5 Detach 5 | . 1 4 Swap 7 | . 3 4 Drop 11 | . 9 2 Fire 79 | . 36 43 Melee . | . . . Ram . | . . . Kick . | . . . Crush . | . . . Escape Stasis . | . . . Rewire . | . . . Trap . | . . . Miscellaneous . | . . . Route ------- -11/Scrapyard -10/Materials (discovered 2 exits: *Mat / [*Min]) -9/Materials History --------- Turn | Location | Event 1 | -11/Scrapyard | Discovered new exit (range 0) 1 | -11/Scrapyard | Entered Materials 90 | -10/Materials | Discovered new exit (range 14) 296 | -10/Materials | Lost 3 parts (2n1w) 315 | -10/Materials | Build established: Mutant 405 | -10/Materials | Discovered new exit (range 10) 411 | -10/Materials | Identified exit to Materials 411 | -10/Materials | Entered another Materials area 411 | -9/Materials | Evolved 2 slots: Utility x2 548 | -9/Materials | Crushed by falling debris 548 | -9/Materials | Core integrity fell below 50% 613 | -9/Materials | Repaired Imp. Hover Unit 838 | -9/Materials | Core integrity fell below 20% 863 | -9/Materials | Destroyed by G-34 Mercenary with Small Laser Last Messages --------------- 00622_ System corrupted: Component data lost. 00630_ K-01 Serf collects debris. 00635_ R-06 Scavenger collects Imp. Ion Engine. 00637_ K-01 Serf collects debris. 00638_ U-05 Engineer builds a Wall. 00678_ Acquired Weight Redist. System. 00738_ G-34 Mercenary destroyed. 00741_ K-01 Serf collects debris. 00763_ TZ& R&FGRQXIQUFXEY 00813_ U-05 Engineer builds a Door. 00816_ W-16 Scout sends out distress signal. 00823_ Mining Laser destroyed. 00826_ Beam Cannon destroyed. 00830_ O-16 Technician sends out distress signal. 00830_ O-16 Technician: "IFF HANDSHAKE FAILED. SECURING TERMINAL." 00834_ ALERT: Hostiles spotted, dispatching reinforcements to Terminal M010. [Achievement: Uninvited Guest] 00859_ S-10 Pest destroyed. 00860_ Imp. Hover Unit destroyed. Map ----- +----------------------------------------------------+ | ##### /// #???# """ """ + | | /// #???# """ """ # | | #???# """ """ #+#+#########/##?? | | #???# # #??????????? | | ############### #???# # """ #??????????? | | ??????????????? #???#####/##### """ #??????????? | | ??????????????+ #???????# #???# """ #??????????? | | ??????????????# #???????# #???# #??????????? | | ??????????????# #???????# #???# """ #??????????? | | ??????????????# #???????# #???# """ #??????????? | | ??????????????# #???????# #???# """ #??????????? | | ??????????????# #???????# #???# #??????????? | | ??????????????#=%*#???"" ?# #???# #??????????? | | ?????########## [ #???"" ?# #???# #??????????? | | ?????# # #?? ##?##### #??????????? | | ?????#[ # #??""" ##?## "######??????????? | | ?????# """ # #? """ ## #########????????????? | | ?????# """"" # #? """ ## ## #????????????? | | ?????# """"" # # #?? # """ #????????????? | | ?????# """"" # # """ # ?s# """ #????????????? | | ?????# """ + + """ + * # """ #????????????? | | ?????# # # """ # + """ #????????????? | | ?????# # # # # """ #????????????? | | ?????###+###### ### #### # #????????????? | | ######## ##### ####### g########????????????? | | k @ g ????????? | | a????????? | | ????????? | | ###+########## ############# ######????????? | | #?????## ##???????????? #?????????????? | | #??????# #?????????????? #?????????????? | | #??????# #??????????????? #?????????????? | | """ #??????+ +????????????????#?????????????? | | """" #??????# #??????????????????????????????? | | """" #??????# #??????????????????????????????? | | """" #??????# #??????????????????????????????? | | """ #??????# ???????????????????????????????? | | #??????# ???????????????????????????????? | | ########??????# ???????????????????????????????? | | ??????????????# ???????????????????????????????? | | ???????????????? ????????????????????????????????? | | ?????????????????????????????????????????????????? | | ?????????????????????????????????????????????????? | | ?????????????????????????????????????????????????? | | ?????????????????????????????????????????????????? | | ?????????????????????????????????????????????????? | | ?????????????????????????????????????????????????? | | ?????????????????????????????????????????????????? | | ?????????????????????????????????????????????????? | | ?????????????????????????????????????????????????? | +----------------------------------------------------+ Best States ------------- Heat Dissipation 38 Energy Generation 14 Energy Capacity 280 Matter Stores 300 Matter Capacity 300 Sight Range 16 Robot Scan Range 13 Terrain Scan Density 10 Additional Mass Support 6 Evasion (%) 53 Item Schematics ----------------- Imp. Hover Unit | -9/Materials | Scanalyzed Robot Schematics ------------------ None Fabricated ------------ Nothing Alien Tech Used ----------------- None Achievements -------------- I Spy Oops Part-time Mechanic Shopping List Uninvited Guest Unlikely Earthworm Challenges ------------ None Game ------ Seed IntegrationNodeCapacitor Manual? 0 Play Time 00:22:52 Cumulative 75.3 hours Start 2020.01.30 @ 23:19:05 End 2020.01.30 @ 23:40:28 Sessions 1 Manual Loads 0 Difficulty Rogue Special Mode None Game No. 55 Rogue 55 Adventurer 0 Explorer 0 Win Type - Total 2 Types 2/0/0/0/0/0/0 Lore% 33 Gallery% 49 Achievement% 6 Wizard Run 0 Options --------- ASCII 0 Keyboard 0 Movement Mouse Keybinds 0 Fullscreen 1 Font 18/SmallcapsGlow Map View 76x50 Tactical HUD 1 Map Filters NONE Filters NONE Steam 1 RUN: dfb4a4cf-bc56-4f9d-9795-9c5bebc090b5